fUSD/lending_fUSD_20260612
["ID","MTS","AMOUNT","RATE_DAILY","PERIOD"]
[424925689,1781278238000,-500.0,0.00013698,2]
[424925687,1781278238000,-500.0,0.00013698,2]
[424925685,1781278238000,-500.0,0.00013698,2]
[424925692,1781278238000,-2500.0,0.00013699,2]
[424925690,1781278238000,-500.0,0.00013698,2]
[424925674,1781278238000,-814.32,0.00013698,2]
[424925727,1781278238000,-798.42324057,0.00014044,2]
[424925691,1781278238000,-287.06193287,0.00013698,2]
[424925720,1781278238000,-766.4659643,0.00014022,2]
[424925754,1781278238000,-301.56,0.00014171,2]
[424925752,1781278238000,-798.42324057,0.00014145,2]
[424925757,1781278238000,-15000.0,0.00014196,2]
[424925770,1781278238000,-798.42324057,0.00014232,2]
[424925766,1781278238000,-798.42324057,0.00014226,2]
[424925755,1781278238000,-798.42324057,0.00014193,2]
[424925764,1781278238000,-6111.0,0.00014204,2]
[424925768,1781278238000,-798.42324057,0.0001423,2]
[424925762,1781278238000,-798.42324057,0.000142,2]
[424925759,1781278238000,-798.42324057,0.00014198,2]
[424925719,1781278238000,-250.0,0.00014,2]
[424925751,1781278238000,-798.42324057,0.00014142,2]
[424925776,1781278238000,-798.42324057,0.00014252,2]
[424925783,1781278238000,-312.33037738,0.00014284,2]
[424925782,1781278238000,-198.34885291,0.00014284,2]
[424925772,1781278238000,-301.56,0.00014234,2]
[424925784,1781278238000,-287.74401028,0.00014284,2]
[424925787,1781278238000,-470.35144812,0.00014287,2]
[424925786,1781278238000,-485.26362913,0.00014287,2]
[424925778,1781278238000,-163.0,0.00014256,2]
[424925774,1781278238000,-150.0,0.00014237,2]
[424925785,1781278238000,-213.80798757,0.00014287,2]
[424925788,1781278238000,-151.0,0.00013699,2]
[424925789,1781278238000,-1699.0,0.00014287,2]
[424925781,1781278238000,-798.42324057,0.00014258,2]
[424925747,1781278238000,-798.42324057,0.0001413,2]
[424925753,1781278238000,-798.42324057,0.00014157,2]
[424925748,1781278238000,-1125.44,0.00014133,2]
[424925749,1781278238000,-127.54001737,0.00014134,2]
[424925721,1781278238000,-301.56,0.00014028,2]
[424925716,1781278238000,-4200.0,0.000139,5]
[424925722,1781278238000,-7234.41001456,0.00014029,2]
[424925723,1781278238000,-798.42324057,0.00014031,2]
[424925729,1781278238000,-20574.49022443,0.00014048,2]
[424925728,1781278238000,-798.42324057,0.00014046,2]
[424925733,1781278238000,-1113.038951,0.00014055,2]
[424925730,1781278238000,-15000.0,0.00014055,2]
[424925731,1781278238000,-1113.038951,0.00014055,2]
[424925734,1781278238000,-1113.038951,0.00014055,2]
[424925735,1781278238000,-798.42324057,0.0001407,2]
[424925732,1781278238000,-1113.038951,0.00014055,2]
[424925736,1781278238000,-798.42324057,0.00014075,2]
[424925737,1781278238000,-798.42324057,0.00014094,2]
[424925744,1781278238000,-798.42324057,0.00014118,2]
[424925743,1781278238000,-798.42324057,0.00014114,2]
[424925745,1781278238000,-798.42324057,0.00014118,2]
[424925739,1781278238000,-10000.0,0.00014101,2]
[424925746,1781278238000,-798.42324057,0.00014122,2]
[424925742,1781278238000,-301.56,0.00014102,2]
[424925740,1781278238000,-151.0,0.00014101,2]
[424925750,1781278238000,-670.8832232,0.00014134,2]
[424925738,1781278238000,-798.42324057,0.000141,2]
[424925741,1781278238000,-151.0,0.00014101,2]
[424925797,1781278239000,-10162.10302654,0.00014344,2]
[424925800,1781278239000,-301.56,0.00014405,2]
[424925795,1781278239000,-798.42324057,0.00014299,2]
[424925803,1781278239000,-301.56,0.00014456,2]
[424925796,1781278239000,-1500.0,0.00014318,2]
[424925794,1781278239000,-798.42324057,0.00014297,2]
[424925792,1781278239000,-3242.57693518,0.00014287,2]
[424925790,1781278239000,-205.22223056,9.19e-05,2]
[424925791,1781278239000,-151.0,0.00013699,2]
[424925799,1781278239000,-199.5,0.0001439,2]
[424925793,1781278239000,-301.56,0.00014294,2]
[424925802,1781278239000,-798.42324057,0.00014437,2]
[424925812,1781278239000,-12013.11991477,0.0001458,2]
[424925801,1781278239000,-500.0,0.00014411,2]
[424925805,1781278239000,-20574.49022443,0.00014474,2]
[424925804,1781278239000,-766.46596428,0.00014461,2]
[424925807,1781278239000,-6400.0,0.000145,5]
[424925806,1781278239000,-2469.0530101,0.0001448,2]
[424925810,1781278239000,-182.199,0.00014525,2]
[424925811,1781278239000,-301.56,0.00014553,2]
[424925808,1781278239000,-301.56,0.00014505,2]
[424925809,1781278239000,-1792.664,0.00014525,2]
[424925813,1781278239000,-1560.37485156,0.0001458,2]
[424925814,1781278239000,-1005.79994145,0.0001458,2]
[424925798,1781278239000,-301.56,0.00014351,2]
[424925816,1781278240000,-390.53051822,0.00014294,2]
[424925817,1781278240000,-741.95672546,0.0001458,2]
[424925818,1781278240000,-639.61886,0.0001458,2]
[424925819,1781278240000,-385.83571343,0.0001458,2]
[424925843,1781278243000,-329.31,0.00013644,2]
[424925844,1781278243000,-184.29,0.00013698,2]
[424925845,1781278243000,-315.71,0.00013698,2]
[424925847,1781278243000,-500.0,0.00013698,2]
[424925849,1781278243000,-12835.84,0.0001458,2]
[424925848,1781278243000,-9399.23399333,0.0001458,2]
[424925850,1781278243000,-298.04,0.0001458,2]
[424925851,1781278243000,-520.9,0.00014598,2]
[424925857,1781278243000,-10700.0,0.000147,5]
[424925853,1781278243000,-8500.0,0.000146,5]
[424925854,1781278243000,-150.0,0.00014612,2]
[424925856,1781278243000,-301.56,0.00014643,2]
[424925855,1781278243000,-301.61,0.0001463,2]
[424925846,1781278243000,-500.0,0.00013698,2]
[424925859,1781278243000,-1555.5,0.00014866,2]
[424925852,1781278243000,-301.56,0.00014598,2]
[424925869,1781278243000,-2100.0,0.000149,5]
[424925868,1781278243000,-20574.49022443,0.000149,2]
[424925867,1781278243000,-766.46596428,0.000149,2]
[424925864,1781278243000,-500.0,0.00014899,2]
[424925866,1781278243000,-347.32213811,0.000149,2]
[424925870,1781278243000,-10162.10302654,0.000149,2]
[424925861,1781278243000,-500.0,0.00014874,2]
[424925863,1781278243000,-5800.0,0.00014891,2]
[424925860,1781278243000,-500.0,0.00014874,2]
[424925862,1781278243000,-814.32,0.00014874,2]
[424925865,1781278243000,-500.0,0.00014899,2]
[424925858,1781278243000,-2100.0,0.000148,5]
[424925908,1781278244000,-1125.44,0.00014999,2]
[424925909,1781278244000,-1125.44,0.00014999,2]
[424925910,1781278244000,-1125.44,0.00014999,2]
[424925906,1781278244000,-1125.44,0.00014999,2]
[424925901,1781278244000,-500.0,0.00014999,2]
[424925902,1781278244000,-500.0,0.00014999,2]
[424925905,1781278244000,-649.7,0.00014999,2]
[424925912,1781278244000,-1125.44,0.00014999,2]
[424925904,1781278244000,-500.0,0.00014999,2]
[424925907,1781278244000,-1125.44,0.00014999,2]
[424925911,1781278244000,-1125.44,0.00014999,2]
[424925917,1781278244000,-1125.60230947,0.00014999,2]
[424925914,1781278244000,-1125.44,0.00014999,2]
[424925915,1781278244000,-1125.44,0.00014999,2]
[424925920,1781278244000,-500.0,0.00014999,2]
[424925918,1781278244000,-500.0,0.00014999,2]
[424925916,1781278244000,-1125.44,0.00014999,2]
[424925919,1781278244000,-500.0,0.00014999,2]
[424925922,1781278244000,-500.0,0.00014999,2]
[424925921,1781278244000,-500.0,0.00014999,2]
[424925931,1781278244000,-520.9,0.00014999,2]
[424925903,1781278244000,-500.0,0.00014999,2]
[424925913,1781278244000,-1125.44,0.00014999,2]
[424925900,1781278244000,-500.0,0.00014999,2]
[424925888,1781278244000,-1363.62851665,0.00014999,5]
[424925899,1781278244000,-500.0,0.00014999,2]
[424925871,1781278244000,-5800.0,0.000149,2]
[424925877,1781278244000,-150.0,0.00014986,2]
[424925881,1781278244000,-150.0,0.00014986,2]
[424925873,1781278244000,-170.00389449,0.000149,2]
[424925880,1781278244000,-150.0,0.00014986,2]
[424925879,1781278244000,-150.0,0.00014986,2]
[424925875,1781278244000,-6971.87521381,0.000149,2]
[424925882,1781278244000,-150.0,0.00014986,2]
[424925884,1781278244000,-922.72192516,0.0001499,2]
[424925885,1781278244000,-922.72192516,0.0001499,2]
[424925923,1781278244000,-500.0,0.00014999,2]
[424925883,1781278244000,-922.72192516,0.0001499,2]
[424925887,1781278244000,-1363.62851665,0.00014999,5]
[424925886,1781278244000,-1363.62851665,0.00014999,5]
[424925889,1781278244000,-1363.62851665,0.00014999,5]
[424925890,1781278244000,-1363.62851665,0.00014999,5]
[424925891,1781278244000,-1363.62851665,0.00014999,5]
[424925895,1781278244000,-1363.62851665,0.00014999,5]
[424925892,1781278244000,-1363.62851665,0.00014999,5]
[424925893,1781278244000,-1363.62851665,0.00014999,5]
[424925894,1781278244000,-1363.62851665,0.00014999,5]
[424925898,1781278244000,-500.0,0.00014999,2]
[424925896,1781278244000,-500.0,0.00014999,2]
[424925897,1781278244000,-500.0,0.00014999,2]
[424925929,1781278244000,-520.9,0.00014999,2]
[424925958,1781278244000,-500.0,0.00014999,2]
[424925925,1781278244000,-520.9,0.00014999,2]
[424925957,1781278244000,-500.0,0.00014999,2]
[424925956,1781278244000,-814.47737414,0.00014999,2]
[424925961,1781278244000,-500.0,0.00014999,2]
[424925960,1781278244000,-500.0,0.00014999,2]
[424925959,1781278244000,-500.0,0.00014999,2]
[424925954,1781278244000,-814.32,0.00014999,2]
[424925963,1781278244000,-500.0,0.00014999,2]
[424925962,1781278244000,-500.0,0.00014999,2]
[424925965,1781278244000,-500.0,0.00014999,2]
[424925964,1781278244000,-500.0,0.00014999,2]
[424925955,1781278244000,-814.32,0.00014999,2]
[424925967,1781278244000,-500.0,0.00014999,2]
[424925968,1781278244000,-500.0,0.00014999,2]
[424925971,1781278244000,-500.0,0.00014999,2]
[424925970,1781278244000,-500.0,0.00014999,2]
[424925972,1781278244000,-500.0,0.00014999,2]
[424925926,1781278244000,-520.9,0.00014999,2]
[424925969,1781278244000,-500.0,0.00014999,2]
[424925974,1781278244000,-500.0,0.00014999,2]
[424925975,1781278244000,-500.0,0.00014999,2]
[424925977,1781278244000,-500.0,0.00014999,2]
[424925976,1781278244000,-500.0,0.00014999,2]
[424925966,1781278244000,-500.0,0.00014999,2]
[424925953,1781278244000,-1113.038947,0.00014999,2]
[424925973,1781278244000,-500.0,0.00014999,2]
[424925951,1781278244000,-814.32,0.00014999,2]
[424925950,1781278244000,-814.32,0.00014999,2]
[424925927,1781278244000,-520.9,0.00014999,2]
[424925924,1781278244000,-648.18,0.00014999,2]
[424925930,1781278244000,-520.9,0.00014999,2]
[424925932,1781278244000,-520.9,0.00014999,2]
[424925933,1781278244000,-520.9,0.00014999,2]
[424925935,1781278244000,-520.9,0.00014999,2]
[424925934,1781278244000,-520.9,0.00014999,2]
[424925936,1781278244000,-520.9,0.00014999,2]
[424925937,1781278244000,-520.9,0.00014999,2]
[424925938,1781278244000,-520.94236502,0.00014999,2]
[424925941,1781278244000,-1113.038951,0.00014999,2]
[424925928,1781278244000,-520.9,0.00014999,2]
[424925939,1781278244000,-250.0,0.00014999,2]
[424925940,1781278244000,-2000.0,0.00014999,2]
[424925948,1781278244000,-814.32,0.00014999,2]
[424925945,1781278244000,-814.32,0.00014999,2]
[424925949,1781278244000,-814.32,0.00014999,2]
[424925944,1781278244000,-1113.038951,0.00014999,2]
[424925947,1781278244000,-814.32,0.00014999,2]
[424925943,1781278244000,-814.32,0.00014999,2]
[424925942,1781278244000,-1113.038951,0.00014999,2]
[424925946,1781278244000,-814.32,0.00014999,2]
[424925952,1781278244000,-814.32,0.00014999,2]
[424925996,1781278245000,-500.0,0.00014999,2]
[424926002,1781278245000,-500.0,0.00014999,2]
[424926009,1781278245000,-500.0,0.00014999,2]
[424926006,1781278245000,-500.0,0.00014999,2]
[424926003,1781278245000,-500.0,0.00014999,2]
[424926004,1781278245000,-500.0,0.00014999,2]
[424926005,1781278245000,-500.0,0.00014999,2]
[424926007,1781278245000,-500.0,0.00014999,2]
[424926018,1781278245000,-500.0,0.00014999,2]
[424926011,1781278245000,-500.0,0.00014999,2]
[424926013,1781278245000,-500.0,0.00014999,2]
[424926015,1781278245000,-500.0,0.00014999,2]
[424926014,1781278245000,-500.0,0.00014999,2]
[424926016,1781278245000,-500.0,0.00014999,2]
[424926008,1781278245000,-500.0,0.00014999,2]
[424925999,1781278245000,-500.0,0.00014999,2]
[424926012,1781278245000,-500.0,0.00014999,2]
[424926010,1781278245000,-500.0,0.00014999,2]
[424926001,1781278245000,-500.0,0.00014999,2]
[424925987,1781278245000,-500.0,0.00014999,2]
[424926000,1781278245000,-500.0,0.00014999,2]
[424926017,1781278245000,-500.0,0.00014999,2]
[424925980,1781278245000,-500.0,0.00014999,2]
[424925978,1781278245000,-500.0,0.00014999,2]
[424925983,1781278245000,-500.0,0.00014999,2]
[424925984,1781278245000,-500.0,0.00014999,2]
[424925982,1781278245000,-500.0,0.00014999,2]
[424925981,1781278245000,-500.0,0.00014999,2]
[424925979,1781278245000,-500.0,0.00014999,2]
[424925998,1781278245000,-500.0,0.00014999,2]
[424925986,1781278245000,-500.0,0.00014999,2]
[424925991,1781278245000,-500.0,0.00014999,2]
[424925990,1781278245000,-500.0,0.00014999,2]
[424925989,1781278245000,-500.0,0.00014999,2]
[424925995,1781278245000,-500.0,0.00014999,2]
[424925988,1781278245000,-500.0,0.00014999,2]
[424925994,1781278245000,-500.0,0.00014999,2]
[424925993,1781278245000,-500.0,0.00014999,2]
[424925997,1781278245000,-500.0,0.00014999,2]
[424925985,1781278245000,-500.0,0.00014999,2]
[424926020,1781278245000,-500.0,0.00014999,2]
[424925992,1781278245000,-500.0,0.00014999,2]
[424926022,1781278245000,-500.0,0.00014999,2]
[424926048,1781278245000,-500.0,0.00014999,2]
[424926045,1781278245000,-500.0,0.00014999,2]
[424926050,1781278245000,-500.0,0.00014999,2]
[424926046,1781278245000,-500.0,0.00014999,2]
[424926064,1781278245000,-10699.35449799,0.00015,2]
[424926044,1781278245000,-500.0,0.00014999,2]
[424926049,1781278245000,-500.0,0.00014999,2]
[424926051,1781278245000,-500.0,0.00014999,2]
[424926043,1781278245000,-500.0,0.00014999,2]
[424926052,1781278245000,-500.0,0.00014999,2]
[424926054,1781278245000,-500.0,0.00014999,2]
[424926055,1781278245000,-500.0,0.00014999,2]
[424926056,1781278245000,-531.05929864,0.00014999,2]
[424926021,1781278245000,-500.0,0.00014999,2]
[424926062,1781278245000,-300.0,0.00014999,2]
[424926058,1781278245000,-300.0,0.00014999,2]
[424926060,1781278245000,-666.0,0.00014999,2]
[424926061,1781278245000,-300.0,0.00014999,2]
[424926053,1781278245000,-500.0,0.00014999,2]
[424926047,1781278245000,-500.0,0.00014999,2]
[424926063,1781278245000,-103231.83745597,0.00015,2]
[424926041,1781278245000,-500.0,0.00014999,2]
[424926024,1781278245000,-500.0,0.00014999,2]
[424926019,1781278245000,-500.0,0.00014999,2]
[424926023,1781278245000,-500.0,0.00014999,2]
[424926025,1781278245000,-500.0,0.00014999,2]
[424926027,1781278245000,-500.0,0.00014999,2]
[424926028,1781278245000,-500.0,0.00014999,2]
[424926029,1781278245000,-500.0,0.00014999,2]
[424926030,1781278245000,-500.0,0.00014999,2]
[424926038,1781278245000,-500.0,0.00014999,2]
[424926026,1781278245000,-500.0,0.00014999,2]
[424926034,1781278245000,-500.0,0.00014999,2]
[424926033,1781278245000,-500.0,0.00014999,2]
[424926031,1781278245000,-500.0,0.00014999,2]
[424926035,1781278245000,-500.0,0.00014999,2]
[424926036,1781278245000,-500.0,0.00014999,2]
[424926037,1781278245000,-500.0,0.00014999,2]
[424926039,1781278245000,-500.0,0.00014999,2]
[424926040,1781278245000,-500.0,0.00014999,2]
[424926032,1781278245000,-500.0,0.00014999,2]
[424926042,1781278245000,-500.0,0.00014999,2]
[424926071,1781278246000,-500.0,0.00014999,2]
[424926069,1781278246000,-500.0,0.00014899,2]
[424926067,1781278246000,-500.0,0.00013698,2]
[424926070,1781278246000,-491.7557289,0.000149,2]
[424926068,1781278246000,-500.0,0.00014035,2]
[424926073,1781278246000,-825574.11835799,0.00015,2]
[424926074,1781278246000,-277.61363731,0.00015,2]
[424926075,1781278246000,-458229.951009,0.00015,2]
[424926076,1781278246000,-64256.51180284,0.00015,2]
[424926077,1781278246000,-337.72478997,0.00015,2]
[424926072,1781278246000,-494.62,0.00014999,2]
[424926081,1781278333000,-500.0,9.28e-05,2]
[424926080,1781278333000,-188.76014781,9.28e-05,2]
[424926082,1781278333000,-500.0,9.28e-05,2]
[424926085,1781278333000,-500.0,9.28e-05,2]
[424926083,1781278333000,-500.0,9.28e-05,2]
[424926084,1781278333000,-500.0,9.28e-05,2]
[424926086,1781278333000,-617.82967144,9.28e-05,2]
[424926088,1781278333000,-500.0,9.28e-05,2]
[424926087,1781278333000,-500.0,9.28e-05,2]
[424926090,1781278333000,-500.0,9.28e-05,2]
[424926091,1781278333000,-500.0,9.28e-05,2]
[424926092,1781278333000,-150.0,9.603e-05,2]
[424926093,1781278333000,-204.21522022,9.708e-05,2]
[424926095,1781278333000,-221.55016484,9.708e-05,2]
[424926096,1781278333000,-3158.33917503,9.9e-05,2]
[424926094,1781278333000,-359.30562066,9.708e-05,2]
[424926089,1781278333000,-500.0,9.28e-05,2]
[424926098,1781278442000,-500.0,9.413e-05,2]
[424926101,1781278496000,-1005.79994145,9.604e-05,2]
[424926102,1781278516000,-1100.23605855,9.604e-05,2]
[424926105,1781278532000,-150.0,9.799e-05,2]
[424926103,1781278532000,-175.986,9.604e-05,2]
[424926106,1781278532000,-4524.014,9.799e-05,2]
[424926104,1781278532000,-150.0,9.701e-05,2]
[424926108,1781278569000,-1909.13,9.799e-05,2]
[424926109,1781278590000,-151.0,9.797e-05,2]
[424926110,1781278620000,-10000.0,9.799e-05,2]
[424926111,1781278643000,-1263.67,9.799e-05,2]
[424926112,1781278643000,-10000.0,9.799e-05,2]
[424926114,1781278664000,-10000.0,9.799e-05,2]
[424926113,1781278664000,-151.0,9.797e-05,2]
[424926115,1781278668000,-5182.19886272,9.799e-05,2]
[424926116,1781278668000,-4817.80113728,9.8e-05,2]
[424926117,1781278716000,-5000.0,9.8e-05,2]
[424926118,1781278717000,-9999.0,9.8e-05,2]
[424926119,1781278736000,-1560.37485156,9.8e-05,2]
[424926120,1781278756000,-1560.37485156,9.8e-05,2]
[424926124,1781278847000,-500.0,9.624e-05,2]
[424926125,1781278847000,-155.08511538,9.624e-05,2]
[424926121,1781278847000,-500.0,9.624e-05,2]
[424926122,1781278847000,-352.17624895,9.624e-05,2]
[424926123,1781278847000,-226.12349001,9.624e-05,2]
[424926129,1781278848000,-500.0,9.624e-05,2]
[424926127,1781278848000,-500.0,9.624e-05,2]
[424926126,1781278848000,-500.0,9.624e-05,2]
[424926128,1781278848000,-500.0,9.624e-05,2]
[424926131,1781278848000,-500.0,9.624e-05,2]
[424926136,1781278848000,-814.44722786,9.624e-05,2]
[424926132,1781278848000,-353.99080792,9.624e-05,2]
[424926130,1781278848000,-500.0,9.624e-05,2]
[424926135,1781278848000,-1852.45126733,9.624e-05,2]
[424926134,1781278848000,-1852.45126733,9.624e-05,2]
[424926133,1781278848000,-393.27457522,9.624e-05,2]
[424926140,1781278858000,-1852.45126733,9.624e-05,2]
[424926138,1781278858000,-1852.45126733,9.624e-05,2]
[424926139,1781278858000,-1852.45126733,9.624e-05,2]
[424926137,1781278858000,-1038.00403947,9.624e-05,2]
[424926141,1781278859000,-1852.45126733,9.624e-05,2]
[424926142,1781278859000,-1552.19089121,9.624e-05,2]
[424926144,1781278860000,-1852.45126733,9.624e-05,2]
[424926143,1781278860000,-300.26037612,9.624e-05,2]
[424926146,1781278860000,-1852.45126733,9.624e-05,2]
[424926147,1781278860000,-1852.45126733,9.624e-05,2]
[424926149,1781278860000,-437.48328723,9.624e-05,2]
[424926145,1781278860000,-1852.45126733,9.624e-05,2]
[424926148,1781278860000,-1852.45126733,9.624e-05,2]
[424926155,1781278861000,-1175.22695058,9.624e-05,2]
[424926153,1781278861000,-1852.45126733,9.624e-05,2]
[424926154,1781278861000,-1852.45126733,9.624e-05,2]
[424926152,1781278861000,-1852.45126733,9.624e-05,2]
[424926151,1781278861000,-1852.45126733,9.624e-05,2]
[424926150,1781278861000,-1414.9679801,9.624e-05,2]
[424926161,1781278862000,-1852.45126733,9.624e-05,2]
[424926160,1781278862000,-1852.45126733,9.624e-05,2]
[424926159,1781278862000,-1852.45126733,9.624e-05,2]
[424926157,1781278862000,-1852.45126733,9.624e-05,2]
[424926158,1781278862000,-1852.45126733,9.624e-05,2]
[424926156,1781278862000,-677.22431675,9.624e-05,2]
[424926162,1781278862000,-60.5193466,9.624e-05,2]
[424926164,1781278863000,-1852.45126733,9.624e-05,2]
[424926163,1781278863000,-1791.93192073,9.624e-05,2]
[424926166,1781278863000,-1852.45126733,9.624e-05,2]
[424926167,1781278863000,-1852.45126733,9.624e-05,2]
[424926168,1781278863000,-798.26300995,9.624e-05,2]
[424926165,1781278863000,-1852.45126733,9.624e-05,2]
[424926174,1781278864000,-1536.0066733,9.624e-05,2]
[424926172,1781278864000,-1852.45126733,9.624e-05,2]
[424926173,1781278864000,-1852.45126733,9.624e-05,2]
[424926171,1781278864000,-1852.45126733,9.624e-05,2]
[424926170,1781278864000,-1852.45126733,9.624e-05,2]
[424926169,1781278864000,-1054.18825738,9.624e-05,2]
[424926180,1781278865000,-1852.45126733,9.624e-05,2]
[424926181,1781278865000,-421.29906932,9.624e-05,2]
[424926179,1781278865000,-1852.45126733,9.624e-05,2]
[424926176,1781278865000,-1852.45126733,9.624e-05,2]
[424926177,1781278865000,-1852.45126733,9.624e-05,2]
[424926178,1781278865000,-1852.45126733,9.624e-05,2]
[424926175,1781278865000,-316.44459403,9.624e-05,2]
[424926184,1781278866000,-1852.45126733,9.624e-05,2]
[424926183,1781278866000,-1852.45126733,9.624e-05,2]
[424926182,1781278866000,-1431.15219801,9.624e-05,2]
[424926186,1781278866000,-1852.45126733,9.624e-05,2]
[424926187,1781278866000,-1159.04273267,9.624e-05,2]
[424926185,1781278866000,-1852.45126733,9.624e-05,2]
[424926192,1781278906000,-4490.23856294,9.623e-05,2]
[424926191,1781278906000,-1847.289926,9.574e-05,2]
[424926190,1781278906000,-532.85,9.567e-05,2]
[424926188,1781278906000,-531.86357059,8.823e-05,2]
[424926189,1781278906000,-510.75794047,9e-05,2]
[424926194,1781279095000,-2151.5302,9.15e-05,2]
[424926195,1781279116000,-2151.5302,9.15e-05,2]
[424926196,1781279137000,166.68416382,0.0001,8]
[424926197,1781279137000,-1985.9596,9.15e-05,2]
[424926198,1781279190000,-299.29,9.192e-05,2]
[424926199,1781279244000,-150.0,9.291e-05,2]
[424926200,1781279297000,-150.0,9.383e-05,2]
[424926201,1781279301000,-455.17,8.842e-05,2]
[424926202,1781279301000,-500.0,9.113e-05,2]
[424926206,1781279301000,-193.0,9.395e-05,2]
[424926204,1781279301000,-371.663837,9.383e-05,2]
[424926205,1781279301000,-300.0,9.389e-05,2]
[424926207,1781279301000,-150.0,9.407e-05,2]
[424926208,1781279301000,-150.0,9.425e-05,2]
[424926203,1781279301000,-573.34350821,9.283e-05,2]
[424926210,1781279301000,-54.84118036,9.426e-05,2]
[424926213,1781279301000,-500.0,9.426e-05,2]
[424926212,1781279301000,-500.0,9.426e-05,2]
[424926211,1781279301000,-445.15881964,9.426e-05,2]
[424926214,1781279301000,-500.0,9.426e-05,2]
[424926217,1781279301000,-302.85970593,9.426e-05,2]
[424926215,1781279301000,-500.0,9.426e-05,2]
[424926216,1781279301000,-500.0,9.426e-05,2]
[424926209,1781279301000,-500.0,9.426e-05,2]
[424926218,1781279326000,-500.0,9.425e-05,2]
[424926220,1781279326000,-336.08904582,9.425e-05,2]
[424926219,1781279326000,-285.34264656,9.425e-05,2]
[424926221,1781279326000,-500.0,9.425e-05,2]
[424926222,1781279326000,-500.0,9.425e-05,2]
[424926224,1781279326000,-500.0,9.425e-05,2]
[424926223,1781279326000,-500.0,9.425e-05,2]
[424926225,1781279326000,-256.50757421,9.425e-05,2]
[424926227,1781279326000,-500.0,9.425e-05,2]
[424926229,1781279326000,-500.0,9.425e-05,2]
[424926228,1781279326000,-500.0,9.425e-05,2]
[424926230,1781279326000,-500.0,9.425e-05,2]
[424926232,1781279326000,-500.0,9.425e-05,2]
[424926233,1781279326000,-93.45666608,9.425e-05,2]
[424926231,1781279326000,-500.0,9.425e-05,2]
[424926226,1781279326000,-243.49242579,9.425e-05,2]
[424926234,1781279349000,-406.54333392,9.425e-05,2]
[424926240,1781279352000,-792.27226554,9.425e-05,2]
[424926239,1781279352000,-792.27226554,9.425e-05,2]
[424926238,1781279352000,-792.27226554,9.425e-05,2]
[424926242,1781279352000,-746.25844311,9.425e-05,2]
[424926237,1781279352000,-792.27226554,9.425e-05,2]
[424926235,1781279352000,-792.27226554,9.425e-05,2]
[424926236,1781279352000,-792.27226554,9.425e-05,2]
[424926241,1781279352000,-792.27226554,9.425e-05,2]
[424926251,1781279352000,-29.38904674,9.426e-05,2]
[424926243,1781279352000,-46.01382243,9.425e-05,2]
[424926245,1781279352000,-792.27226554,9.425e-05,2]
[424926246,1781279352000,-792.27226554,9.425e-05,2]
[424926248,1781279352000,-197.14029407,9.426e-05,2]
[424926247,1781279352000,-792.27226554,9.425e-05,2]
[424926249,1781279352000,-99.9938551,9.426e-05,2]
[424926250,1781279352000,-400.0061449,9.426e-05,2]
[424926252,1781279352000,-470.61095326,9.426e-05,2]
[424926244,1781279352000,-792.27226554,9.425e-05,2]
[424926257,1781279353000,-153.39382619,9.473e-05,2]
[424926256,1781279353000,-622.76114989,9.426e-05,2]
[424926255,1781279353000,-500.0,9.426e-05,2]
[424926254,1781279353000,-500.0,9.426e-05,2]
[424926253,1781279353000,-500.0,9.426e-05,2]
[424926258,1781279356000,500.0,9.425e-05,2]
[424926259,1781279359000,-2509.10493047,9.522e-05,2]
[424926260,1781279370000,2685.46,9.327e-05,2]
[424926262,1781279372000,27.20432612,9.351e-05,2]
[424926261,1781279372000,500.0,9.351e-05,2]
[424926263,1781279403000,-472.79567388,9.351e-05,2]
[424926284,1781279432000,-500.0,9.351e-05,2]
[424926282,1781279432000,-500.0,9.351e-05,2]
[424926287,1781279432000,-500.0,9.351e-05,2]